[Event "*** Titled Tuesday Blitz"]
[Site "Chess.com"]
[Date "2021.04.27"]
[Round "5"]
[White "ljuks68"]
[Black "maximych26"]
[Result "0-1"]
[WhiteElo "2447"]
[BlackElo "2306"]
[TimeControl "180+1"]
[EndTime "10:55:54 PDT"]
[Termination "maximych26 won on time"]

1. e4 {[%clk 0:03:00.9]} 1... c6 {[%clk 0:02:59.2]} 2. d4 {[%clk 0:02:59.3]}
2... d5 {[%clk 0:02:58.5]} 3. e5 {[%clk 0:02:59.8]} 3... Bf5 {[%clk 0:02:56.7]}
4. Nd2 {[%clk 0:02:59.7]} 4... e6 {[%clk 0:02:54.3]} 5. Nb3 {[%clk 0:03:00]}
5... h6 {[%clk 0:02:53.9]} 6. Nf3 {[%clk 0:03:00.1]} 6... Nd7 {[%clk 0:02:52.5]}
7. Be2 {[%clk 0:03:00.2]} 7... c5 {[%clk 0:02:52.4]} 8. dxc5 {[%clk 0:02:58.6]}
8... Nxc5 {[%clk 0:02:51.3]} 9. O-O {[%clk 0:02:58.4]} 9... Nxb3 {[%clk
0:02:45.2]} 10. axb3 {[%clk 0:02:57.5]} 10... Ne7 {[%clk 0:02:45.8]} 11. b4
{[%clk 0:02:49.4]} 11... a6 {[%clk 0:02:41.5]} 12. Be3 {[%clk 0:02:38.6]} 12...
Bg4 {[%clk 0:02:39.6]} 13. b5 {[%clk 0:02:27]} 13... axb5 {[%clk 0:02:35.6]} 14.
Bxb5+ {[%clk 0:02:24.5]} 14... Nc6 {[%clk 0:02:35]} 15. Rxa8 {[%clk 0:02:14.1]}
15... Qxa8 {[%clk 0:02:33.8]} 16. h3 {[%clk 0:02:08.7]} 16... Bxf3 {[%clk
0:02:26.9]} 17. Qxf3 {[%clk 0:02:07]} 17... Be7 {[%clk 0:02:26.2]} 18. Qg3
{[%clk 0:02:03.9]} 18... g6 {[%clk 0:02:20.4]} 19. c4 {[%clk 0:01:15.7]} 19...
dxc4 {[%clk 0:02:16.4]} 20. Bxc4 {[%clk 0:01:14.8]} 20... h5 {[%clk 0:02:07.5]}
21. Bxe6 {[%clk 0:01:11.7]} 21... fxe6 {[%clk 0:02:04.5]} 22. Qxg6+ {[%clk
0:01:11.2]} 22... Kd7 {[%clk 0:02:04.5]} 23. Rd1+ {[%clk 0:01:01.2]} 23... Kc7
{[%clk 0:02:04.4]} 24. Qxe6 {[%clk 0:01:00.1]} 24... Qc8 {[%clk 0:01:59.5]} 25.
Qc4 {[%clk 0:00:51.7]} 25... Kb8 {[%clk 0:01:54.8]} 26. Bf4 {[%clk 0:00:51.1]}
26... Rd8 {[%clk 0:01:00]} 27. e6+ {[%clk 0:00:46.1]} 27... Ka7 {[%clk
0:00:59.4]} 28. Ra1+ {[%clk 0:00:34.4]} 28... Kb6 {[%clk 0:00:58.5]} 29. Qb3+
{[%clk 0:00:29]} 29... Bb4 {[%clk 0:00:56.6]} 30. Ra4 {[%clk 0:00:26.2]} 30...
Kb5 {[%clk 0:00:49.3]} 31. e7 {[%clk 0:00:15]} 31... Rd4 {[%clk 0:00:45.2]} 32.
Be3 {[%clk 0:00:08.3]} 32... Rd7 {[%clk 0:00:38.5]} 33. Rxb4+ {[%clk 0:00:01.4]}
33... Nxb4 {[%clk 0:00:37.3]} 34. Qe6 {[%clk 0:00:01.8]} 34... Rd1+ {[%clk
0:00:32.7]} 0-1

[Event "*** Titled Tuesday Blitz"]
[Site "Chess.com"]
[Date "2021.04.27"]
[Round "5"]
[White "Apocalyps999"]
[Black "KhatanbaatarBazar"]
[Result "0-1"]
[WhiteElo "2440"]
[BlackElo "2658"]
[TimeControl "180+1"]
[EndTime "10:55:55 PDT"]
[Termination "KhatanbaatarBazar won by resignation"]

1. e4 {[%clk 0:03:00.9]} 1... e5 {[%clk 0:02:59.5]} 2. Nf3 {[%clk 0:03:00.3]}
2... Nc6 {[%clk 0:03:00.3]} 3. Bc4 {[%clk 0:02:59.4]} 3... Bc5 {[%clk
0:03:00.1]} 4. b4 {[%clk 0:02:57.3]} 4... Bxb4 {[%clk 0:03:00.2]} 5. c3 {[%clk
0:02:56.7]} 5... Be7 {[%clk 0:03:00.4]} 6. d4 {[%clk 0:02:56]} 6... d6 {[%clk
0:02:58.7]} 7. Qb3 {[%clk 0:02:39.8]} 7... Na5 {[%clk 0:02:58.6]} 8. Bxf7+
{[%clk 0:02:32]} 8... Kf8 {[%clk 0:02:59.1]} 9. Qa4 {[%clk 0:02:30.4]} 9... Kxf7
{[%clk 0:02:57.5]} 10. Qxa5 {[%clk 0:02:30.1]} 10... exd4 {[%clk 0:02:57.8]} 11.
cxd4 {[%clk 0:02:22.8]} 11... c6 {[%clk 0:02:58.3]} 12. Qc3 {[%clk 0:02:09.9]}
12... Nf6 {[%clk 0:02:56.9]} 13. Nbd2 {[%clk 0:02:07.7]} 13... h6 {[%clk
0:02:51.7]} 14. O-O {[%clk 0:02:06.5]} 14... Be6 {[%clk 0:02:51.7]} 15. Bb2
{[%clk 0:02:00.5]} 15... Re8 {[%clk 0:02:45.3]} 16. e5 {[%clk 0:01:58.6]} 16...
dxe5 {[%clk 0:02:43.5]} 17. dxe5 {[%clk 0:01:54.3]} 17... Nd5 {[%clk 0:02:43.4]}
18. Qc2 {[%clk 0:01:52.3]} 18... Kg8 {[%clk 0:02:42.8]} 19. a3 {[%clk
0:01:40.7]} 19... Rf8 {[%clk 0:02:36.3]} 20. Rad1 {[%clk 0:01:33.2]} 20... Qe8
{[%clk 0:02:32.9]} 21. Nd4 {[%clk 0:01:32.3]} 21... Qf7 {[%clk 0:02:32.4]} 22.
Nxe6 {[%clk 0:01:25.7]} 22... Qxe6 {[%clk 0:02:32.7]} 23. Nb3 {[%clk 0:01:16.8]}
23... Nf4 {[%clk 0:02:28.5]} 24. g3 {[%clk 0:00:15]} 24... Nh3+ {[%clk
0:02:21.8]} 25. Kg2 {[%clk 0:00:14.7]} 25... Ng5 {[%clk 0:02:21.6]} 26. Nd4
{[%clk 0:00:14.1]} 26... Qh3+ {[%clk 0:02:20.9]} 27. Kh1 {[%clk 0:00:13.2]}
27... c5 {[%clk 0:02:21.1]} 28. f4 {[%clk 0:00:12.3]} 28... cxd4 {[%clk
0:02:21]} 29. Qc4+ {[%clk 0:00:11.4]} 29... Nf7 {[%clk 0:02:19.7]} 30. Qxd4
{[%clk 0:00:09.7]} 30... Rfd8 {[%clk 0:02:19.2]} 31. Qe4 {[%clk 0:00:08.5]}
31... Qe6 {[%clk 0:02:12.8]} 32. f5 {[%clk 0:00:04.6]} 32... Qc6 {[%clk
0:02:12.5]} 33. Qxc6 {[%clk 0:00:04.9]} 33... bxc6 {[%clk 0:02:12.9]} 34. e6
{[%clk 0:00:05.1]} 34... Nd6 {[%clk 0:02:10.1]} 35. g4 {[%clk 0:00:05.4]} 35...
Ne4 {[%clk 0:02:09.2]} 36. Kg2 {[%clk 0:00:04.7]} 36... Bf6 {[%clk 0:02:09.2]}
37. Bxf6 {[%clk 0:00:04.2]} 37... Nxf6 {[%clk 0:02:09.6]} 38. Rc1 {[%clk
0:00:03.7]} 38... Rac8 {[%clk 0:02:08]} 39. h3 {[%clk 0:00:04.1]} 39... Kf8
{[%clk 0:02:07.8]} 40. Rf2 {[%clk 0:00:04.5]} 40... Ke7 {[%clk 0:02:08]} 41.
Rfc2 {[%clk 0:00:05]} 41... Rd6 {[%clk 0:02:07.9]} 42. Rc5 {[%clk 0:00:05.6]}
42... Ne4 {[%clk 0:02:07.3]} 43. Ra5 {[%clk 0:00:06.1]} 43... Rc7 {[%clk
0:02:07.9]} 44. Rc4 {[%clk 0:00:06.3]} 44... Nf6 {[%clk 0:02:07.3]} 45. Rca4
{[%clk 0:00:06.4]} 45... Rd2+ {[%clk 0:02:03.6]} 46. Kf3 {[%clk 0:00:06.3]}
46... Rd3+ {[%clk 0:02:03.4]} 47. Kg2 {[%clk 0:00:06.7]} 47... Nd5 {[%clk
0:01:56.7]} 48. Rxa7 {[%clk 0:00:06.8]} 48... Kd6 {[%clk 0:01:55.5]} 49. Rxc7
{[%clk 0:00:06.3]} 49... Nxc7 {[%clk 0:01:55.4]} 50. Ra7 {[%clk 0:00:06.6]}
50... Re3 {[%clk 0:01:55.1]} 51. a4 {[%clk 0:00:06.6]} 51... g6 {[%clk
0:01:54.4]} 52. a5 {[%clk 0:00:06.4]} 52... gxf5 {[%clk 0:01:54.4]} 53. gxf5
{[%clk 0:00:07.3]} 53... Re5 {[%clk 0:01:54.3]} 54. f6 {[%clk 0:00:06.4]} 54...
Rxe6 {[%clk 0:01:54.4]} 55. f7 {[%clk 0:00:05.5]} 55... Rf6 {[%clk 0:01:54.5]}
56. a6 {[%clk 0:00:06]} 56... Rxf7 {[%clk 0:01:54.4]} 57. Rb7 {[%clk 0:00:06.7]}
57... Rf4 {[%clk 0:01:53.7]} 58. a7 {[%clk 0:00:06.5]} 58... Ra4 {[%clk
0:01:53.6]} 59. Kg3 {[%clk 0:00:07]} 59... c5 {[%clk 0:01:53.8]} 60. h4 {[%clk
0:00:05.6]} 60... Kc6 {[%clk 0:01:54]} 0-1

[Event "*** Titled Tuesday Blitz"]
[Site "Chess.com"]
[Date "2021.04.27"]
[Round "5"]
[White "queen_iryna"]
[Black "Omk124"]
[Result "0-1"]
[WhiteElo "2381"]
[BlackElo "2558"]
[TimeControl "180+1"]
[EndTime "10:55:57 PDT"]
[Termination "Omk124 won on time"]

1. e4 {[%clk 0:03:00.9]} 1... c5 {[%clk 0:02:59.9]} 2. Nf3 {[%clk 0:02:58.9]}
2... d6 {[%clk 0:02:59.8]} 3. Bb5+ {[%clk 0:02:58.9]} 3... Bd7 {[%clk
0:02:59.8]} 4. Bxd7+ {[%clk 0:02:58.7]} 4... Qxd7 {[%clk 0:03:00.7]} 5. c4
{[%clk 0:02:58.8]} 5... Nc6 {[%clk 0:03:00.5]} 6. d4 {[%clk 0:02:57.5]} 6...
cxd4 {[%clk 0:03:01]} 7. Nxd4 {[%clk 0:02:58.3]} 7... Nf6 {[%clk 0:03:01.5]} 8.
Nc3 {[%clk 0:02:58.7]} 8... g6 {[%clk 0:03:01.7]} 9. f3 {[%clk 0:02:57]} 9...
Bg7 {[%clk 0:03:02.1]} 10. Be3 {[%clk 0:02:57.2]} 10... O-O {[%clk 0:03:02.2]}
11. O-O {[%clk 0:02:57.3]} 11... Rfc8 {[%clk 0:03:02.3]} 12. b3 {[%clk
0:02:54.3]} 12... a6 {[%clk 0:02:56.9]} 13. Rc1 {[%clk 0:02:50.5]} 13... Ne5
{[%clk 0:02:42.8]} 14. Qd2 {[%clk 0:02:42.1]} 14... Rab8 {[%clk 0:02:35.7]} 15.
Rfd1 {[%clk 0:02:15.9]} 15... b5 {[%clk 0:02:33.5]} 16. cxb5 {[%clk 0:02:14.6]}
16... axb5 {[%clk 0:02:34.4]} 17. Ncxb5 {[%clk 0:02:05.4]} 17... Rxc1 {[%clk
0:02:27.3]} 18. Rxc1 {[%clk 0:02:06.3]} 18... Rxb5 {[%clk 0:02:21.2]} 19. Nxb5
{[%clk 0:02:07.2]} 19... Qxb5 {[%clk 0:02:21.5]} 20. Rc8+ {[%clk 0:02:06.9]}
20... Bf8 {[%clk 0:02:21.5]} 21. Bh6 {[%clk 0:02:01.2]} 21... Nfd7 {[%clk
0:02:08]} 22. Bxf8 {[%clk 0:01:47.5]} 22... Nxf8 {[%clk 0:02:08.9]} 23. Qh6
{[%clk 0:01:40.7]} 23... Qb6+ {[%clk 0:02:00.7]} 24. Kh1 {[%clk 0:01:31.6]}
24... Nd7 {[%clk 0:02:00.7]} 25. Qc1 {[%clk 0:01:19.3]} 25... Kg7 {[%clk
0:01:53.1]} 26. Qc3+ {[%clk 0:01:14]} 26... Nf6 {[%clk 0:01:51.8]} 27. a4 {[%clk
0:01:05.5]} 27... Ne6 {[%clk 0:01:48.8]} 28. h3 {[%clk 0:00:47.9]} 28... Nc5
{[%clk 0:01:35.7]} 29. a5 {[%clk 0:00:43.3]} 29... Qa6 {[%clk 0:01:18.1]} 30. b4
{[%clk 0:00:40.3]} 30... Qxc8 {[%clk 0:01:16.5]} 31. bxc5 {[%clk 0:00:39.5]}
31... dxc5 {[%clk 0:01:17.4]} 32. Qc4 {[%clk 0:00:36.1]} 32... Nd7 {[%clk
0:01:14.9]} 33. a6 {[%clk 0:00:34.9]} 33... Qc7 {[%clk 0:01:12.5]} 34. Qc3+
{[%clk 0:00:27.2]} 34... e5 {[%clk 0:01:11.6]} 35. Qd3 {[%clk 0:00:18.2]} 35...
c4 {[%clk 0:01:09.8]} 36. Qe3 {[%clk 0:00:16.4]} 36... c3 {[%clk 0:01:09.3]} 37.
a7 {[%clk 0:00:16.1]} 37... c2 {[%clk 0:01:09.9]} 38. Qc1 {[%clk 0:00:10]} 38...
Nb6 {[%clk 0:01:09.8]} 39. Kh2 {[%clk 0:00:08.6]} 39... Qxa7 {[%clk 0:01:00.2]}
40. Qxc2 {[%clk 0:00:07.7]} 40... Nd7 {[%clk 0:00:59.5]} 41. Qb2 {[%clk
0:00:07.2]} 41... Qd4 {[%clk 0:00:59.4]} 42. Qb7 {[%clk 0:00:06.4]} 42... Nc5
{[%clk 0:00:58.8]} 43. Qe7 {[%clk 0:00:05.3]} 43... Ne6 {[%clk 0:00:58.9]} 44.
Qb7 {[%clk 0:00:03.6]} 44... Qd2 {[%clk 0:00:57.5]} 45. Qb5 {[%clk 0:00:01.4]}
45... Qf4+ {[%clk 0:00:57.1]} 0-1

[Event "*** Titled Tuesday Blitz"]
[Site "Chess.com"]
[Date "2021.04.27"]
[Round "5"]
[White "DarkAlekhine"]
[Black "adriangschnitzer"]
[Result "1/2-1/2"]
[WhiteElo "2682"]
[BlackElo "2511"]
[TimeControl "180+1"]
[EndTime "10:55:59 PDT"]
[Termination "Game drawn by repetition"]

1. e4 {[%clk 0:03:00.9]} 1... c5 {[%clk 0:02:59.7]} 2. Nf3 {[%clk 0:03:00.9]}
2... Nc6 {[%clk 0:02:59.8]} 3. d4 {[%clk 0:03:01.2]} 3... cxd4 {[%clk
0:03:00.7]} 4. Nxd4 {[%clk 0:03:01.9]} 4... g6 {[%clk 0:03:00.6]} 5. c4 {[%clk
0:03:01.3]} 5... Bg7 {[%clk 0:03:00.8]} 6. Be3 {[%clk 0:03:01.5]} 6... Nf6
{[%clk 0:03:01.3]} 7. Nc3 {[%clk 0:03:01.4]} 7... Ng4 {[%clk 0:03:01.4]} 8. Qxg4
{[%clk 0:03:00.4]} 8... Nxd4 {[%clk 0:03:01.4]} 9. Qd1 {[%clk 0:03:00.9]} 9...
Ne6 {[%clk 0:03:01.9]} 10. Qd2 {[%clk 0:02:58.3]} 10... Qa5 {[%clk 0:02:59.2]}
11. Rb1 {[%clk 0:02:58.3]} 11... Bxc3 {[%clk 0:02:52.7]} 12. bxc3 {[%clk
0:02:59.2]} 12... d6 {[%clk 0:02:38]} 13. Be2 {[%clk 0:02:55.2]} 13... Bd7
{[%clk 0:02:35.4]} 14. O-O {[%clk 0:02:51.5]} 14... Bc6 {[%clk 0:02:34.5]} 15.
f3 {[%clk 0:02:24.7]} 15... g5 {[%clk 0:02:34.4]} 16. Rfd1 {[%clk 0:02:03.7]}
16... b6 {[%clk 0:02:32.9]} 17. Rb5 {[%clk 0:01:58.5]} 17... Bxb5 {[%clk
0:02:28]} 18. cxb5 {[%clk 0:01:59.4]} 18... Rc8 {[%clk 0:02:25.1]} 19. Rc1
{[%clk 0:01:58.8]} 19... Nf4 {[%clk 0:02:14.8]} 20. Bf1 {[%clk 0:01:54.9]} 20...
h6 {[%clk 0:02:11.1]} 21. Qb2 {[%clk 0:01:47.6]} 21... f6 {[%clk 0:02:01.3]} 22.
g3 {[%clk 0:01:45.5]} 22... Ng6 {[%clk 0:01:58.8]} 23. Qb3 {[%clk 0:01:30.5]}
23... Ne5 {[%clk 0:01:30.7]} 24. Be2 {[%clk 0:01:21.9]} 24... Rc7 {[%clk
0:00:58.8]} 25. f4 {[%clk 0:01:11]} 25... gxf4 {[%clk 0:00:58.1]} 26. gxf4
{[%clk 0:01:11.9]} 26... Nd7 {[%clk 0:00:57.4]} 27. Kf2 {[%clk 0:01:07.6]} 27...
Kd8 {[%clk 0:00:56.5]} 28. Rg1 {[%clk 0:00:57.8]} 28... Rxc3 {[%clk 0:00:49]}
29. Qd5 {[%clk 0:00:34.9]} 29... Qb4 {[%clk 0:00:29]} 30. Qa8+ {[%clk 0:00:16]}
30... Rc8 {[%clk 0:00:27.4]} 31. Qd5 {[%clk 0:00:15]} 31... Kc7 {[%clk
0:00:24.3]} 32. Qc6+ {[%clk 0:00:14]} 32... Kd8 {[%clk 0:00:20.5]} 33. Qd5
{[%clk 0:00:14.3]} 33... Kc7 {[%clk 0:00:19.5]} 34. Qc6+ {[%clk 0:00:12.2]}
34... Kd8 {[%clk 0:00:19.6]} 35. Qd5 {[%clk 0:00:12.4]} 1/2-1/2

[Event "*** Titled Tuesday Blitz"]
[Site "Chess.com"]
[Date "2021.04.27"]
[Round "5"]
[White "Zhigalko_Sergei"]
[Black "DeTimmerman"]
[Result "1-0"]
[WhiteElo "2950"]
[BlackElo "2800"]
[TimeControl "180+1"]
[EndTime "10:56:04 PDT"]
[Termination "Zhigalko_Sergei won by resignation"]

1. e4 {[%clk 0:03:00.9]} 1... e5 {[%clk 0:02:57]} 2. Nf3 {[%clk 0:02:57.4]} 2...
Nc6 {[%clk 0:02:57.4]} 3. Bc4 {[%clk 0:02:55.9]} 3... Nf6 {[%clk 0:02:57.3]} 4.
d3 {[%clk 0:02:54.2]} 4... Be7 {[%clk 0:02:56.9]} 5. O-O {[%clk 0:02:54.1]} 5...
O-O {[%clk 0:02:57.1]} 6. Nbd2 {[%clk 0:02:53.1]} 6... d6 {[%clk 0:02:57.1]} 7.
c3 {[%clk 0:02:53.3]} 7... Kh8 {[%clk 0:02:56.6]} 8. Re1 {[%clk 0:02:52.4]} 8...
Ng8 {[%clk 0:02:56.7]} 9. d4 {[%clk 0:02:52.4]} 9... f5 {[%clk 0:02:55.6]} 10.
dxe5 {[%clk 0:02:50.8]} 10... fxe4 {[%clk 0:02:54.2]} 11. Nxe4 {[%clk
0:02:48.4]} 11... Rxf3 {[%clk 0:02:50.9]} 12. exd6 {[%clk 0:02:25.7]} 12... cxd6
{[%clk 0:02:20.1]} 13. Bxg8 {[%clk 0:01:39.9]} 13... Rf8 {[%clk 0:02:15.7]} 14.
Bd5 {[%clk 0:01:31.1]} 14... Ne5 {[%clk 0:02:11.4]} 15. Be3 {[%clk 0:01:23.9]}
15... Bg4 {[%clk 0:01:50.5]} 16. Qb3 {[%clk 0:01:23.6]} 16... Nd3 {[%clk
0:01:34.2]} 17. Rf1 {[%clk 0:01:10.5]} 17... a5 {[%clk 0:01:10.6]} 18. a4 {[%clk
0:01:01.9]} 18... Nc5 {[%clk 0:01:02.5]} 19. Nxc5 {[%clk 0:00:48.7]} 19... dxc5
{[%clk 0:01:03.4]} 20. h3 {[%clk 0:00:46.9]} 20... Bh5 {[%clk 0:00:59.7]} 21.
Be4 {[%clk 0:00:39.5]} 21... Rb8 {[%clk 0:00:55.8]} 22. Qd5 {[%clk 0:00:35.3]}
22... Qxd5 {[%clk 0:00:48.2]} 23. Bxd5 {[%clk 0:00:35.5]} 23... b5 {[%clk
0:00:49.1]} 24. axb5 {[%clk 0:00:31]} 24... Rxb5 {[%clk 0:00:50]} 25. Ra2 {[%clk
0:00:30.7]} 25... Bf7 {[%clk 0:00:44.8]} 26. Bxf7 {[%clk 0:00:28.8]} 26... Rxf7
{[%clk 0:00:45.7]} 27. Rd1 {[%clk 0:00:29.2]} 27... Kg8 {[%clk 0:00:37.5]} 28.
Rd5 {[%clk 0:00:27]} 28... Bf8 {[%clk 0:00:26.5]} 29. g3 {[%clk 0:00:20.2]}
29... Rfb7 {[%clk 0:00:26.1]} 30. c4 {[%clk 0:00:13.6]} 30... Rxb2 {[%clk
0:00:26]} 31. Rxa5 {[%clk 0:00:14.3]} 31... Rc2 {[%clk 0:00:22.8]} 32. Ra8
{[%clk 0:00:13.3]} 32... Rcb2 {[%clk 0:00:14.9]} 33. Rdd8 {[%clk 0:00:10.6]} 1-0

[Event "*** Titled Tuesday Blitz"]
[Site "Chess.com"]
[Date "2021.04.27"]
[Round "5"]
[White "vovachesss"]
[Black "Yaryi_sergey"]
[Result "1-0"]
[WhiteElo "2614"]
[BlackElo "2428"]
[TimeControl "180+1"]
[EndTime "10:56:04 PDT"]
[Termination "vovachesss won by resignation"]

1. d4 {[%clk 0:02:58.9]} 1... Nf6 {[%clk 0:02:59.2]} 2. c4 {[%clk 0:02:58.3]}
2... g6 {[%clk 0:02:51.9]} 3. Nc3 {[%clk 0:02:56]} 3... d5 {[%clk 0:02:50.1]} 4.
cxd5 {[%clk 0:02:52]} 4... Nxd5 {[%clk 0:02:49.6]} 5. Bd2 {[%clk 0:02:51.1]}
5... Bg7 {[%clk 0:02:45.1]} 6. Nf3 {[%clk 0:02:50.6]} 6... O-O {[%clk
0:02:39.2]} 7. e4 {[%clk 0:02:50.6]} 7... Nb6 {[%clk 0:02:39]} 8. Be3 {[%clk
0:02:50.6]} 8... Bg4 {[%clk 0:02:37.8]} 9. Be2 {[%clk 0:02:49.9]} 9... Nc6
{[%clk 0:02:37.4]} 10. d5 {[%clk 0:02:48.3]} 10... Bxf3 {[%clk 0:02:37.2]} 11.
Bxf3 {[%clk 0:02:48.2]} 11... Ne5 {[%clk 0:02:36.7]} 12. Be2 {[%clk 0:02:33]}
12... Nec4 {[%clk 0:02:35.7]} 13. Bc1 {[%clk 0:02:00.1]} 13... c6 {[%clk
0:02:34.4]} 14. O-O {[%clk 0:01:58.8]} 14... cxd5 {[%clk 0:02:30.9]} 15. exd5
{[%clk 0:01:50.7]} 15... Rc8 {[%clk 0:02:30.5]} 16. Qb3 {[%clk 0:01:44.7]} 16...
Bxc3 {[%clk 0:02:26.1]} 17. Qxc3 {[%clk 0:01:39.4]} 17... Nxd5 {[%clk
0:02:21.2]} 18. Qg3 {[%clk 0:01:18.7]} 18... Qd6 {[%clk 0:02:16.9]} 19. Qh4
{[%clk 0:01:07.7]} 19... Ncb6 {[%clk 0:02:09.5]} 20. Bf3 {[%clk 0:00:58.2]}
20... Qf6 {[%clk 0:02:07.5]} 21. Bg5 {[%clk 0:00:57.6]} 21... Qxb2 {[%clk
0:02:06.9]} 22. Bxe7 {[%clk 0:00:45.6]} 22... Rfe8 {[%clk 0:01:59.5]} 23. Bg5
{[%clk 0:00:40.5]} 23... Qe5 {[%clk 0:01:54.2]} 24. a4 {[%clk 0:00:35.9]} 24...
Rc4 {[%clk 0:01:53.1]} 25. Qh6 {[%clk 0:00:34.3]} 25... Qg7 {[%clk 0:01:50.3]}
26. Qxg7+ {[%clk 0:00:30.5]} 26... Kxg7 {[%clk 0:01:49.4]} 27. a5 {[%clk
0:00:31.4]} 27... Re5 {[%clk 0:01:37.9]} 28. axb6 {[%clk 0:00:28.5]} 28... axb6
{[%clk 0:01:34.6]} 29. Bc1 {[%clk 0:00:19.3]} 29... f6 {[%clk 0:01:25.6]} 30.
Bb2 {[%clk 0:00:16.7]} 30... Rf5 {[%clk 0:01:25.5]} 31. Ra7 {[%clk 0:00:16.5]}
31... Rc7 {[%clk 0:01:23.4]} 32. Rc1 {[%clk 0:00:15.3]} 32... Re7 {[%clk
0:01:22.1]} 33. h3 {[%clk 0:00:13]} 33... Nf4 {[%clk 0:01:21.3]} 34. Rd1 {[%clk
0:00:11.9]} 34... Rb5 {[%clk 0:01:19.6]} 35. Bc3 {[%clk 0:00:09.5]} 35... Rb3
{[%clk 0:01:18.6]} 36. Bd4 {[%clk 0:00:09]} 36... Nxh3+ {[%clk 0:01:18.2]} 37.
gxh3 {[%clk 0:00:06.7]} 37... Rxf3 {[%clk 0:01:17.5]} 38. Kg2 {[%clk 0:00:04.3]}
38... Rb3 {[%clk 0:01:16.6]} 39. Be3 {[%clk 0:00:03.8]} 39... g5 {[%clk
0:01:13.9]} 40. Rd6 {[%clk 0:00:03.9]} 40... Rb2 {[%clk 0:01:07.7]} 41. Bxb6
{[%clk 0:00:03.6]} 41... h5 {[%clk 0:01:02.5]} 42. Bd4 {[%clk 0:00:03.7]} 42...
Rbe2 {[%clk 0:00:56.4]} 43. Bxf6+ {[%clk 0:00:03.8]} 43... Kf7 {[%clk
0:00:57.3]} 44. Bxe7 {[%clk 0:00:04.6]} 44... Rxe7 {[%clk 0:00:57.9]} 45. Rb6
{[%clk 0:00:05.5]} 45... Re4 {[%clk 0:00:57.4]} 46. Raxb7+ {[%clk 0:00:06.4]}
1-0

[Event "*** Titled Tuesday Blitz"]
[Site "Chess.com"]
[Date "2021.04.27"]
[Round "5"]
[White "szefru"]
[Black "Julianos82"]
[Result "1-0"]
[WhiteElo "2175"]
[BlackElo "2306"]
[TimeControl "180+1"]
[EndTime "10:56:04 PDT"]
[Termination "szefru won by resignation"]

1. e4 {[%clk 0:03:00.9]} 1... c5 {[%clk 0:02:58.1]} 2. Nf3 {[%clk 0:02:59.4]}
2... b6 {[%clk 0:02:55.2]} 3. b3 {[%clk 0:02:58.3]} 3... Bb7 {[%clk 0:02:54.3]}
4. Nc3 {[%clk 0:02:58.9]} 4... Nf6 {[%clk 0:02:50.7]} 5. e5 {[%clk 0:02:52.8]}
5... Nd5 {[%clk 0:02:44.3]} 6. Bb2 {[%clk 0:02:52.3]} 6... e6 {[%clk 0:02:44.1]}
7. g3 {[%clk 0:02:44.1]} 7... g6 {[%clk 0:02:39.5]} 8. Bg2 {[%clk 0:02:43.6]}
8... Bg7 {[%clk 0:02:36.6]} 9. O-O {[%clk 0:02:43.3]} 9... O-O {[%clk
0:02:31.5]} 10. Ne4 {[%clk 0:02:35.7]} 10... f5 {[%clk 0:02:18.5]} 11. Nd6
{[%clk 0:01:41.4]} 11... Bc6 {[%clk 0:02:07]} 12. c4 {[%clk 0:01:24.4]} 12...
Ne7 {[%clk 0:01:58]} 13. d4 {[%clk 0:01:16.5]} 13... cxd4 {[%clk 0:01:49.2]} 14.
Qxd4 {[%clk 0:01:14.4]} 14... Be4 {[%clk 0:01:45.9]} 15. Nxe4 {[%clk 0:01:05]}
15... fxe4 {[%clk 0:01:46.8]} 16. Qxe4 {[%clk 0:01:04]} 16... Nbc6 {[%clk
0:01:46.6]} 17. Nd2 {[%clk 0:00:52.6]} 17... Qc7 {[%clk 0:01:41.7]} 18. f4
{[%clk 0:00:52.1]} 18... Rad8 {[%clk 0:01:30.8]} 19. Rad1 {[%clk 0:00:45.6]}
19... d6 {[%clk 0:01:25.4]} 20. exd6 {[%clk 0:00:45.7]} 20... Rxd6 {[%clk
0:01:25.9]} 21. Bxg7 {[%clk 0:00:44.1]} 21... Kxg7 {[%clk 0:01:26.8]} 22. Nf3
{[%clk 0:00:41.7]} 22... Rfd8 {[%clk 0:01:24.4]} 23. Rxd6 {[%clk 0:00:37.4]}
23... Qxd6 {[%clk 0:01:24.5]} 24. Ng5 {[%clk 0:00:35.8]} 24... Nd4 {[%clk
0:01:14.4]} 25. Bh3 {[%clk 0:00:20.9]} 25... Nef5 {[%clk 0:01:07.1]} 26. Kh1
{[%clk 0:00:20.1]} 26... h6 {[%clk 0:00:44.6]} 27. Nf3 {[%clk 0:00:18.6]} 27...
Nxf3 {[%clk 0:00:42.4]} 28. Qxf3 {[%clk 0:00:19.5]} 28... Qd2 {[%clk 0:00:33.1]}
29. Rf2 {[%clk 0:00:19.2]} 29... Qe1+ {[%clk 0:00:25.6]} 30. Bf1 {[%clk
0:00:19.1]} 30... Rd1 {[%clk 0:00:23.1]} 31. Kg1 {[%clk 0:00:18.9]} 31... Ne3
{[%clk 0:00:21.2]} 32. Qb7+ {[%clk 0:00:17.2]} 32... Kf6 {[%clk 0:00:20.3]} 33.
Qf3 {[%clk 0:00:17.4]} 33... h5 {[%clk 0:00:19]} 34. h3 {[%clk 0:00:16.8]} 34...
a5 {[%clk 0:00:18]} 35. g4 {[%clk 0:00:17.2]} 35... hxg4 {[%clk 0:00:18.4]} 36.
hxg4 {[%clk 0:00:18.1]} 36... Nxf1 {[%clk 0:00:16.8]} 37. Rxf1 {[%clk 0:00:19]}
37... Qd2 {[%clk 0:00:15.8]} 38. Rxd1 {[%clk 0:00:19]} 1-0